[Event "Caplin Hastings Masters 2023-24"]
[Site "Hastings"]
[Date "2023.12.30"]
[Round "3.13"]
[White "Southcott-Moyers, Indy"]
[Black "Boyer, Mahel"]
[Result "0-1"]
[ECO "D37"]
[WhiteElo "2123"]
[BlackElo "2427"]
[Annotator "RC"]
[PlyCount "148"]
[EventDate "2023.12.18"]
[EventType "swiss"]
[EventCountry "ENG"]
[SourceTitle "playchess.com"]
[Source "ChessBase"]
[SourceQuality "1"]
[TimeControl "40/6000+30:3000+30"]

1. d4 {[%emt 0:00:04]} d5 {[%emt 0:05:45]} 2. c4 {[%emt 0:00:05]} e6 {[%emt 0:00:13]} 3. Nf3 {[%emt 0:00:10]} Nf6 {[%emt 0:01:19]} 4. Nc3 {[%emt 0:00:05]} a6 {[%emt 0:00:07]} 5. c5 {[%emt 0:01:54]} Nc6 {[%emt 0:06:17]} 6. Bg5 {[%emt 0:08:54]} h6 {[%emt 0:01:13]} 7. Bxf6 {[%emt 0:12:31]} Qxf6 {[%emt 0:02:31]} 8. e3 {[%emt 0:01:42]} g5 {[%emt 0:18:16]} 9. Be2 {[%emt 0:17:55]} Bg7 {[%emt 0:00:49]} 10. h3 {[%emt 0:09:00]} O-O {[%emt 0:03:01]} 11. Qd2 {[%emt 0:10:24]} Rd8 {[%emt 0:02:09]} 12. O-O {[%emt 0:03:20]} Qe7 {[%emt 0:08:31]} 13. Rad1 {[%emt 0:07:14]} e5 {[%emt 0:06:40]} 14. Nxe5 {[%emt 0:06:06]} Nxe5 {[%emt 0:01:15]} 15. dxe5 {[%emt 0:00:05]} Qxe5 {[%emt 0:01:28]} 16. Qd4 {[%emt 0:04:22]} c6 {[%emt 0:04:43]} 17. Qxe5 {[%emt 0:01:45]} Bxe5 {[%emt 0:00:03]} 18. e4 {[%emt 0:03:46]} Re8 {[%emt 0:02:45]} 19. Na4 {[%emt 0:04:13]} dxe4 {[%emt 0:01:28]} 20. Nb6 {[%emt 0:00:21]} Rb8 {[%emt 0:00:17]} 21. Nxc8 {[%emt 0:02:11]} Rbxc8 {[%emt 0:00:27]} 22. Bg4 {[%emt 0:00:06]} Rc7 {[%emt 0:05:19]} 23. b3 {[%emt 0:00:47]} Bc3 {[%emt 0:10:09]} 24. Rd6 {[%emt 0:02:55]} Kg7 {[%emt 0:00:29]} 25. Rfd1 {[%emt 0:01:35]} Re5 {[%emt 0:00:39]} 26. Rd7 {[%emt 0:05:14]} Rxd7 {[%emt 0:00:48]} 27. Bxd7 {[%emt 0:02:50]} Rxc5 {[%emt 0:01:04]} 28. Bc8 {[%emt 0:00:15]} b6 {[%emt 0:00:56]} 29. Bxa6 {[%emt 0:00:15]} Ra5 {[%emt 0:00:02]} 30. Bb7 {[%emt 0:00:20]} Rxa2 {[%emt 0:03:49]} 31. Bxc6 {[%emt 0:00:10]} f5 {[%emt 0:00:18]} 32. g4 {[%emt 0:03:11]} Kf6 {[%emt 0:02:43]} 33. Rd6+ {[%emt 0:01:04]} Ke7 {[%emt 0:00:01]} 34. Rxh6 {[%emt 0:00:23]} f4 {[%emt 0:02:06]} 35. Bd5 {[%emt 0:01:59]} e3 {[%emt 0:01:26]} 36. fxe3 {[%emt 0:00:44]} fxe3 {[%emt 0:00:01]} 37. Bc4 {[%emt 0:00:24]} b5 {[%emt 0:10:25]} 38. Bxb5 {[%emt 0:00:32]} e2 {[%emt 0:04:44]} 39. Bxe2 {[%emt 0:00:03]} Rxe2 {[%emt 0:00:03]} 40. h4 {[%emt 0:00:19]} gxh4 {[%emt 0:04:10]} 41. Rxh4 {[%emt 0:50:24]} Kf6 {[%emt 0:50:26]} 42. Rh5 {[%emt 0:00:00]} Be5 {[%emt 0:00:00]} 43. Kf1 {[%emt 0:00:00]} Rb2 {[%emt 0:00:00]} 44. Ke1 {[%emt 0:00:00]} Ke6 {[%emt 0:00:00]} 45. Rh3 {[%emt 0:00:00]} Bf4 {[%emt 0:00:00]} 46. Rh5 {[%emt 0:00:00]} Be5 {[%emt 0:00:00]} 47. Rh3 {[%emt 0:00:00]} Kd5 {[%emt 0:00:00]} 48. g5 {[%emt 0:00:00]} Ke4 {[%emt 0:00:00]} 49. g6 {[%emt 0:00:00]} Bd4 {[%emt 0:00:00]} 50. Kd1 {[%emt 0:00:00]} Rg2 {[%emt 0:00:00]} 51. g7 {[%emt 0:00:00]} Bxg7 {[%emt 0:00:00]} 52. Rh4+ {[%emt 0:00:00]} Kd5 {[%emt 0:00:00]} 53. Kc1 {[%emt 0:00:00]} Bf6 {[%emt 0:00:00]} 54. Rh5+ {[%emt 0:00:00]} Kd4 {[%emt 0:00:00]} 55. Rh7 {[%emt 0:00:00]} Be5 {[%emt 0:00:00]} 56. Rd7+ {[%emt 0:00:26]} Kc3 {[%emt 0:00:00]} 57. Kd1 {[%emt 0:00:31]} Bd4 {[%emt 0:00:00]} 58. Ke1 {[%emt 0:01:01]} Kd3 {[%emt 0:00:00]} 59. Rf7 {[%emt 0:00:06]} Be3 {[%emt 0:00:00]} 60. Rd7+ {[%emt 0:01:40]} Ke4 {[%emt 0:00:00]} 61. Kd1 {[%emt 0:00:49]} Bd4 {[%emt 0:00:00]} 62. Ke1 {[%emt 0:00:42]} Rb2 {[%emt 0:00:00]} 63. Kf1 {[%emt 0:01:10]} Ke3 {[%emt 0:00:00]} 64. Re7+ {[%emt 0:00:26]} Kd3 {[%emt 0:00:00]} 65. b4 {[%emt 0:01:27]} Rf2+ {[%emt 0:00:00]} 66. Ke1 {[%emt 0:00:07]} Rf8 {[%emt 0:00:00]} 67. Kd1 {[%emt 0:02:49]} Ra8 {[%emt 0:00:00]} 68. Rc7 {[%emt 0:00:05]} Ra1+ {[%emt 0:00:00]} 69. Rc1 {[%emt 0:00:06]} Ra2 {[%emt 0:00:47]} 70. Rc8 {[%emt 0:00:42]} Rg2 {[%emt 0:00:00]} 71. Re8 {[%emt 0:00:26]} Rg5 {[%emt 0:00:00]} 72. b5 {[%emt 0:00:47]} Rxb5 {[%emt 0:00:00]} 73. Rc8 {[%emt 0:00:12]} Bb6 {[%emt 0:00:00]} 74. Rc6 {[%emt 0:00:41]} Bc5 {[%emt 0:00:00]} 0-1

[Event "Caplin Hastings Masters 2023-24"]
[Site "Hastings"]
[Date "2023.12.30"]
[Round "3.14"]
[White "Mikhalevski, Victor"]
[Black "Bozinakis, Pavlos"]
[Result "1-0"]
[ECO "E10"]
[WhiteElo "2524"]
[BlackElo "2274"]
[Annotator "TA"]
[PlyCount "81"]
[EventDate "2023.12.18"]
[EventType "swiss"]
[EventCountry "ENG"]
[SourceTitle "playchess.com"]
[Source "ChessBase"]
[SourceQuality "1"]
[TimeControl "40/6000+30:3000+30"]

{[%evp 14,81,30,20,28,28,33,37,38,35,40,35,77,52,84,72,76,66,87,84,77,85,87,93,114,97,129,128,128,127,123,130,143,137,129,130,138,133,124,135,158,169,131,63,63,63,67,62,72,68,189,180,259,242,308,308,1048,610,1252,874,987,405,29987,29988,29988,29989,29993,29994,29997,29998]} 1. d4 {[%emt 0:07:01]} Nf6 {[%emt 0:01:01]} 2. c4 {[%emt 0:00:10]} Nc6 {[%emt 0:00:41]} 3. Nf3 {[%emt 0:00:16]} e6 {[%emt 0:00:26]} 4. a3 {[%emt 0:00:10]} d6 {[%emt 0:02:10]} 5. Nc3 {[%emt 0:00:10]} g6 {[%emt 0:00:34]} 6. e4 {[%emt 0:00:15]} Bg7 {[%emt 0:00:22]} 7. Be2 {[%emt 0:00:29]} O-O {[%emt 0:00:37]} 8. O-O {[%emt 0:00:51]} Re8 {[%emt 0:01:31] E10: Blumenfeld Gambit.} 9. Be3 {[%emt 0:05:40]} e5 {[%emt 0:00:45]} 10. dxe5 {[%emt 0:00:39]} dxe5 {[%emt 0:07:24] White is slightly better.} 11. h3 {[%emt 0:05:30] Inhibits Bg4.} Be6 {[%emt 0:13:52]} 12. Re1 {[%emt 0:31:58] [#]} Qc8 $146 {[%emt 0:07:52]} ({Predecessor:} 12... Rc8 13. b4 h6 14. Rc1 a6 15. Bf1 Qxd1 16. Rexd1 g5 17. g4 b6 18. Kg2 Ne7 {½-½ Szabo,V (2463)-Contreras,J (2329) WC-2014-S-00002}) 13. Qc2 {[%emt 0:07:06]} Nh5 {[%emt 0:02:48]} 14. Rad1 {[%emt 0:03:16] Repels Nd4} Nf4 {[%emt 0:13:04]} 15. Bf1 {[%emt 0:02:32]} h6 {[%emt 0:08:30]} 16. Nd5 {[%emt 0:18:15]} g5 {[%emt 0:00:17]} 17. b4 {[%emt 0:00:29]} Ne7 {[%emt 0:09:51]} 18. Bxf4 {[%emt 0:05:01]} exf4 {[%emt 0:07:01]} 19. e5 {[%emt 0:00:38][%cal Be4e5,Be5e6][%mdl 32] White has more active pieces.} Nxd5 {[%emt 0:00:57]} 20. cxd5 {[%emt 0:00:06]} Bf5 {[%emt 0:00:30]} 21. Bd3 {[%emt 0:00:31]} Bxd3 {[%emt 0:00:23]} 22. Qxd3 {[%emt 0:02:46]} ({Don't do} 22. Rxd3 Qf5 $14) 22... Qd7 {[%emt 0:01:26] Black is weak on the light squares} 23. Qb3 {[%emt 0:03:30]} Rad8 {[%emt 0:08:04]} 24. e6 {[%emt 0:01:03]} Qe7 {[%emt 0:00:07]} 25. Nd4 {[%emt 0:00:53]} Bxd4 {[%emt 0:00:59]} 26. Rxd4 {[%emt 0:00:06]} Rd6 {[%emt 0:04:51][%cal Rf7e6] [#]} 27. Rde4 $36 {[%emt 0:05:43][%mdl 2048] Keeping Black busy.} f6 {[%emt 0:01:08] [#]} 28. Rc4 {[%emt 0:01:59]} ({White should play} 28. b5 $1 $16) 28... c6 {[%emt 0:04:17]} 29. dxc6 {[%emt 0:00:20]} bxc6 {[%emt 0:00:08]} 30. Rce4 {[%emt 0:02:22]} Kg7 {[%emt 0:00:43]} 31. h4 {[%emt 0:00:34][%cal Bh3h4,Bh4h5][%mdl 32]} Red8 {[%emt 0:02:07] This costs Black the game.} (31... Qc7 $14) 32. h5 {[%emt 0:00:21]} Rd3 {[%emt 0:03:26]} (32... Rf8 {was worth a try.} 33. Qc2 Kh8) 33. Qc2 $18 {[%emt 0:00:10] Threatens to win with Rc4.} R8d6 {[%emt 0:00:13]} 34. Rc4 {[%emt 0:00:39] And now b5 would win.} f3 $2 {[%emt 0:03:11]} (34... R3d5 35. Qg6+ {[%mdl 64] Deflection} (35. Rxc6 Rxc6 36. Qxc6 Re5 $18) 35... Kh8 36. Qxh6+ Kg8 37. Qg6+ Kh8) 35. gxf3 {[%emt 0:01:35] b5 would be deadly.} Kf8 {[%emt 0:00:19]} 36. b5 {[%emt 0:00:09]} Rd2 {[%emt 0:01:46]} 37. Qg6 {[%emt 0:03:50]} (37. Qc1 $142 R2d4 38. bxc6 Rxc4 39. Qxc4) 37... cxb5 {[%emt 0:02:21]} (37... Rxe6 $18 38. Qxh6+ Kg8) 38. Qxh6+ {[%emt 0:00:15] White mates.} Kg8 {[%emt 0:00:09] [#]} 39. Rc7 $3 {[%emt 0:00:45][%mdl 512]} Qxc7 {[%emt 0:01:16]} (39... Rd7 40. Qg6+) 40. e7 {[%emt 0:00:07][%cal Re7e8]} (40. Qxf6 $2 {too greedy.} Rd1 41. Rxd1 Rxd1+ $19) 40... Re6 {[%emt 0:02:13]} 41. Qg6+ {[%emt 0:50:06] A superb game by Mikhalevski.   Weighted Error Value: White=0.34/Black=0.41} 1-0

[Event "Caplin Hastings Masters 2023-24"]
[Site "Hastings"]
[Date "2023.12.30"]
[Round "3.15"]
[White "Liu, Tianyi"]
[Black "Waldhausen Gordon, Frederick"]
[Result "0-1"]
[ECO "B33"]
[WhiteElo "2022"]
[BlackElo "2338"]
[Annotator "ChessBase"]
[PlyCount "72"]
[EventDate "2023.12.18"]
[EventType "swiss"]
[EventCountry "ENG"]
[SourceTitle "playchess.com"]
[Source "ChessBase"]
[SourceQuality "1"]
[TimeControl "40/6000+30:3000+30"]

1. e4 {[%emt 0:00:05]} c5 {[%emt 0:00:02]} 2. Nf3 {[%emt 0:00:05]} Nc6 {[%emt 0:00:06]} 3. d4 {[%emt 0:00:04]} cxd4 {[%emt 0:00:04]} 4. Nxd4 {[%emt 0:00:05]} Nf6 {[%emt 0:00:06]} 5. Nc3 {[%emt 0:00:11]} e5 {[%emt 0:00:03]} 6. Ndb5 {[%emt 0:00:05]} d6 {[%emt 0:00:03]} 7. Bg5 {[%emt 0:00:32]} a6 {[%emt 0:00:06]} 8. Na3 {[%emt 0:00:08]} b5 {[%emt 0:00:04]} 9. Nd5 {[%emt 0:00:06]} Be7 {[%emt 0:00:04]} 10. Bxf6 {[%emt 0:00:06]} Bxf6 {[%emt 0:00:04]} 11. c3 {[%emt 0:00:08]} O-O {[%emt 0:00:11]} 12. Nc2 {[%emt 0:00:08]} Rb8 {[%emt 0:00:10]} 13. h4 {[%emt 0:07:32]} g6 {[%emt 0:00:33]} 14. h5 {[%emt 0:08:33]} Bg7 {[%emt 0:00:08]} 15. Nce3 {[%emt 0:00:26]} Qg5 {[%emt 0:00:58]} 16. g3 {[%emt 0:09:37]} Rb7 {[%emt 0:11:32]} 17. Bh3 {[%emt 0:14:35]} Be6 {[%emt 0:06:50]} 18. hxg6 {[%emt 0:07:10]} hxg6 {[%emt 0:00:08]} 19. Qd3 {[%emt 0:02:10]} Qd8 {[%emt 0:08:13]} 20. Kf1 {[%emt 0:11:13]} Qc8 {[%emt 0:03:09]} 21. Kg2 {[%emt 0:05:44]} f5 {[%emt 0:01:32]} 22. exf5 {[%emt 0:06:42]} gxf5 {[%emt 0:01:55]} 23. Rad1 {[%emt 0:09:58]} a5 {[%emt 0:05:54]} 24. a4 {[%emt 0:05:17]} bxa4 {[%emt 0:05:08]} 25. Rd2 {[%emt 0:07:03]} Qd7 {[%emt 0:04:35]} 26. Qc4 {[%emt 0:00:52]} Ne7 {[%emt 0:03:14]} 27. Nxe7+ {[%emt 0:02:15]} Qxe7 {[%emt 0:00:15]} 28. Qxa4 {[%emt 0:00:46]} e4 {[%emt 0:02:00]} 29. Qxa5 {[%emt 0:05:22]} Be5 {[%emt 0:00:43]} 30. Qa4 {[%emt 0:02:52]} Qg5 {[%emt 0:02:43]} 31. Qc6 {[%emt 0:02:06]} Rg7 {[%emt 0:01:28]} 32. Rxd6 {[%emt 0:02:20]} Bxg3 {[%emt 0:03:11]} 33. Rxe6 {[%emt 0:00:37]} Qf4 {[%emt 0:00:09]} 34. Ng4 {[%emt 0:02:05]} Qf3+ {[%emt 0:00:27]} 35. Kg1 {[%emt 0:00:27]} Bxf2+ {[%emt 0:00:20]} 36. Kf1 {[%emt 0:00:28]} Bh4+ {[%emt 0:00:09]} 0-1

[Event "Caplin Hastings Masters 2023-24"]
[Site "Hastings"]
[Date "2023.12.30"]
[Round "3.16"]
[White "Vestby-Ellingsen, Mads"]
[Black "Rayner, Francis"]
[Result "1-0"]
[ECO "A31"]
[WhiteElo "2329"]
[BlackElo "2035"]
[Annotator "RC"]
[PlyCount "111"]
[EventDate "2023.12.18"]
[EventType "swiss"]
[EventCountry "ENG"]
[SourceTitle "playchess.com"]
[Source "ChessBase"]
[SourceQuality "1"]
[TimeControl "40/6000+30:3000+30"]

1. c4 {[%emt 0:00:12]} c5 {[%emt 0:01:14]} 2. Nf3 {[%emt 0:01:11]} Nf6 {[%emt 0:01:39]} 3. Nc3 {[%emt 0:00:23]} b6 {[%emt 0:04:34]} 4. e4 {[%emt 0:01:57]} d6 {[%emt 0:03:05]} 5. d4 {[%emt 0:00:20]} cxd4 {[%emt 0:00:39]} 6. Nxd4 {[%emt 0:00:06]} Bb7 {[%emt 0:00:44]} 7. f3 {[%emt 0:00:22]} e6 {[%emt 0:05:45]} 8. Be2 {[%emt 0:01:58]} Be7 {[%emt 0:01:02]} 9. Be3 {[%emt 0:00:29]} O-O {[%emt 0:02:59]} 10. O-O {[%emt 0:01:52]} a6 {[%emt 0:00:57]} 11. Rc1 {[%emt 0:00:58]} Nbd7 {[%emt 0:00:29]} 12. Qd2 {[%emt 0:00:26]} Rc8 {[%emt 0:01:38]} 13. Rfd1 {[%emt 0:00:23]} Re8 {[%emt 0:03:07]} 14. a3 {[%emt 0:01:31]} Bf8 {[%emt 0:03:45]} 15. b4 {[%emt 0:06:14]} Qc7 {[%emt 0:06:38]} 16. Bf1 {[%emt 0:04:00]} Qb8 {[%emt 0:02:34]} 17. Qf2 {[%emt 0:04:58]} Ba8 {[%emt 0:04:06]} 18. Nb3 {[%emt 0:05:43]} Be7 {[%emt 0:09:09]} 19. Kh1 {[%emt 0:14:23]} Bd8 {[%emt 0:12:47]} 20. Bf4 {[%emt 0:02:14]} Bc7 {[%emt 0:01:57]} 21. Qd2 {[%emt 0:00:31]} Ne5 {[%emt 0:01:21]} 22. Bxe5 {[%emt 0:00:44]} dxe5 {[%emt 0:00:01]} 23. c5 {[%emt 0:00:46]} Rcd8 {[%emt 0:07:03]} 24. Qe1 {[%emt 0:02:37]} b5 {[%emt 0:05:02]} 25. Rxd8 {[%emt 0:02:00]} Rxd8 {[%emt 0:00:27]} 26. Rd1 {[%emt 0:00:29]} Bc6 {[%emt 0:00:44]} 27. Rxd8+ {[%emt 0:01:49]} Qxd8 {[%emt 0:00:17]} 28. Qd2 {[%emt 0:03:00]} Qb8 {[%emt 0:04:30]} 29. Nc1 {[%emt 0:01:30]} h6 {[%emt 0:01:01]} 30. N1a2 {[%emt 0:02:07]} Qb7 {[%emt 0:06:50]} 31. a4 {[%emt 0:06:04]} Nh5 {[%emt 0:03:15]} 32. axb5 {[%emt 0:01:37]} axb5 {[%emt 0:00:03]} 33. Nb1 {[%emt 0:02:44]} Nf4 {[%emt 0:02:04]} 34. Nac3 {[%emt 0:02:29]} f5 {[%emt 0:02:23]} 35. Na3 {[%emt 0:00:42]} fxe4 {[%emt 0:01:30]} 36. fxe4 {[%emt 0:00:17]} Bxe4 {[%emt 0:01:08]} 37. Nxe4 {[%emt 0:02:56]} Qxe4 {[%emt 0:00:06]} 38. Nxb5 {[%emt 0:00:45]} Qb1 {[%emt 0:02:04]} 39. Kg1 {[%emt 0:00:51]} Bb8 {[%emt 0:03:13]} 40. Na3 {[%emt 0:21:54]} Qb3 {[%emt 0:04:53]} 41. Nc2 {[%emt 0:53:45]} Bc7 {[%emt 0:14:48]} 42. g3 {[%emt 0:00:00]} Nd5 {[%emt 0:01:12]} 43. Qd3 {[%emt 0:00:00]} Qb2 {[%emt 0:05:16]} 44. Qc4 {[%emt 0:00:00]} Qc1 {[%emt 0:04:50]} 45. b5 {[%emt 0:00:00]} Ba5 {[%emt 0:05:12]} 46. b6 {[%emt 0:00:00]} Qb1 {[%emt 0:03:40]} 47. Qa4 {[%emt 0:01:18]} Bd2 {[%emt 0:08:16]} 48. Qb5 {[%emt 0:10:04]} Qxc2 {[%emt 0:01:17]} 49. b7 {[%emt 0:00:12]} Be3+ {[%emt 0:01:35]} 50. Kh1 {[%emt 0:00:12]} Qe4+ {[%emt 0:09:07]} 51. Bg2 {[%emt 0:00:10]} Qd4 {[%emt 0:00:18]} 52. b8=Q+ {[%emt 0:00:15]} Kf7 {[%emt 0:00:50]} 53. Q5e8+ {[%emt 0:00:19]} Kf6 {[%emt 0:00:07]} 54. Qf8+ {[%emt 0:00:10]} Kg6 {[%emt 0:00:39]} 55. Qbe8+ {[%emt 0:00:11]} Kh7 {[%emt 0:00:12]} 56. Qg8# {[%emt 0:00:48]} 1-0

[Event "Caplin Hastings Masters 2023-24"]
[Site "Hastings"]
[Date "2023.12.30"]
[Round "3.17"]
[White "Hng, Mei-Xian Eunice"]
[Black "Rudd, Jack"]
[Result "1/2-1/2"]
[ECO "A09"]
[WhiteElo "2014"]
[BlackElo "2314"]
[Annotator "ChessBase"]
[PlyCount "150"]
[EventDate "2023.12.18"]
[EventType "swiss"]
[EventCountry "ENG"]
[SourceTitle "playchess.com"]
[Source "ChessBase"]
[SourceQuality "1"]
[TimeControl "40/6000+30:3000+30"]

1. Nf3 {[%emt 0:00:18]} d5 {[%emt 0:00:07]} 2. c4 {[%emt 0:00:19]} d4 {[%emt 0:00:07]} 3. e3 {[%emt 0:00:24]} Nc6 {[%emt 0:00:06]} 4. exd4 {[%emt 0:00:22]} Nxd4 {[%emt 0:00:06]} 5. Nxd4 {[%emt 0:00:05]} Qxd4 {[%emt 0:00:08]} 6. Nc3 {[%emt 0:00:23]} Nf6 {[%emt 0:00:14]} 7. Nb5 {[%emt 0:12:55]} Qd8 {[%emt 0:01:06]} 8. d3 {[%emt 0:03:38]} c6 {[%emt 0:01:01]} 9. Nc3 {[%emt 0:00:15]} Bg4 {[%emt 0:00:32]} 10. Be2 {[%emt 0:02:01]} Bxe2 {[%emt 0:00:47]} 11. Qxe2 {[%emt 0:03:54]} e6 {[%emt 0:00:16]} 12. Be3 {[%emt 0:01:37]} c5 {[%emt 0:00:38]} 13. Rd1 {[%emt 0:02:58]} Be7 {[%emt 0:00:26]} 14. O-O {[%emt 0:02:21]} O-O {[%emt 0:00:59]} 15. Rd2 {[%emt 0:02:55]} a6 {[%emt 0:01:31]} 16. a3 {[%emt 0:08:37]} Qc7 {[%emt 0:00:35]} 17. h3 {[%emt 0:03:42]} Qc6 {[%emt 0:02:53]} 18. a4 {[%emt 0:05:00]} Nd7 {[%emt 0:01:15]} 19. Re1 {[%emt 0:05:24]} Bf6 {[%emt 0:03:55]} 20. d4 {[%emt 0:02:51]} cxd4 {[%emt 0:00:45]} 21. Bxd4 {[%emt 0:00:06]} Bxd4 {[%emt 0:01:08]} 22. Rxd4 {[%emt 0:00:06]} Nc5 {[%emt 0:00:26]} 23. Qd1 {[%emt 0:04:10]} Qb6 {[%emt 0:01:09]} 24. Qc2 {[%emt 0:06:22]} g6 {[%emt 0:02:16]} 25. Red1 {[%emt 0:04:17]} Rac8 {[%emt 0:01:18]} 26. Rh4 {[%emt 0:05:40]} Rfd8 {[%emt 0:00:17]} 27. Rxd8+ {[%emt 0:02:46]} Rxd8 {[%emt 0:00:08]} 28. Ne4 {[%emt 0:03:23]} Nxe4 {[%emt 0:00:24]} 29. Rxe4 {[%emt 0:00:07]} Qc5 {[%emt 0:00:07]} 30. b3 {[%emt 0:05:38]} b6 {[%emt 0:01:47]} 31. Qc3 {[%emt 0:03:20]} Rd1+ {[%emt 0:00:14]} 32. Re1 {[%emt 0:00:06]} Rd4 {[%emt 0:00:05]} 33. Qg3 {[%emt 0:04:06]} Rd2 {[%emt 0:02:22]} 34. Qe3 {[%emt 0:06:35]} Qd6 {[%emt 0:00:28]} 35. a5 {[%emt 0:04:53]} bxa5 {[%emt 0:00:24]} 36. c5 {[%emt 0:00:05]} Qd5 {[%emt 0:00:20]} 37. Qc3 {[%emt 0:01:01]} Rd3 {[%emt 0:01:16]} 38. Qxa5 {[%emt 0:00:22]} Rxb3 {[%emt 0:00:18]} 39. Rc1 {[%emt 0:02:00]} Rb5 {[%emt 0:00:58]} 40. Qxa6 {[%emt 0:04:09]} Rxc5 {[%emt 0:00:38]} 41. Rxc5 {[%emt 0:03:05]} Qxc5 {[%emt 0:00:10]} 42. Qa8+ {[%emt 0:01:08]} Kg7 {[%emt 0:00:08]} 43. Qe4 {[%emt 0:00:35]} Qd5 {[%emt 0:01:13]} 44. Qe3 {[%emt 0:00:44]} h5 {[%emt 0:00:48]} 45. Qc3+ {[%emt 0:06:24]} e5 {[%emt 0:00:57]} 46. Qc2 {[%emt 0:01:10]} Qd4 {[%emt 0:00:28]} 47. Qc6 {[%emt 0:01:26]} g5 {[%emt 0:01:02]} 48. Qf3 {[%emt 0:02:27]} h4 {[%emt 0:02:50]} 49. Qf5 {[%emt 0:02:00]} Qf4 {[%emt 0:00:35]} 50. Qd7 {[%emt 0:00:59]} Qc4 {[%emt 0:03:31]} 51. Qd2 {[%emt 0:00:43]} Kg6 {[%emt 0:00:35]} 52. Qd6+ {[%emt 0:01:24]} Qe6 {[%emt 0:01:39]} 53. Qd8 {[%emt 0:02:26]} e4 {[%emt 0:02:40]} 54. Qg8+ {[%emt 0:03:06]} Kf5 {[%emt 0:00:10]} 55. Qf8 {[%emt 0:00:14]} Qc4 {[%emt 0:03:35]} 56. Qe8 {[%emt 0:01:34]} Qc1+ {[%emt 0:01:32]} 57. Kh2 {[%emt 0:00:03]} Qc7+ {[%emt 0:00:08]} 58. Kg1 {[%emt 0:00:11]} f6 {[%emt 0:01:18]} 59. Qb5+ {[%emt 0:01:16]} Qe5 {[%emt 0:00:10]} 60. Qd7+ {[%emt 0:01:29]} Qe6 {[%emt 0:00:46]} 61. Qh7+ {[%emt 0:00:56]} Ke5 {[%emt 0:00:50]} 62. Qc7+ {[%emt 0:00:18]} Qd6 {[%emt 0:00:29]} 63. Qc3+ {[%emt 0:00:22]} Ke6 {[%emt 0:02:01]} 64. Qc4+ {[%emt 0:01:13]} Qd5 {[%emt 0:00:15]} 65. Qc8+ {[%emt 0:00:18]} Kf7 {[%emt 0:00:17]} 66. Qc7+ {[%emt 0:00:29]} Kg6 {[%emt 0:00:12]} 67. Qc8 {[%emt 0:00:13]} Qf7 {[%emt 0:04:57]} 68. Qc6 {[%emt 0:02:41]} Qe7 {[%emt 0:00:09]} 69. Qc4 {[%emt 0:00:20]} Qb7 {[%emt 0:01:17]} 70. Qg8+ {[%emt 0:01:15]} Kf5 {[%emt 0:00:06]} 71. Qe8 {[%emt 0:01:11]} Qb1+ {[%emt 0:01:16]} 72. Kh2 {[%emt 0:00:02]} Qd3 {[%emt 0:00:09]} 73. Qc8+ {[%emt 0:00:38]} Ke5 {[%emt 0:00:34]} 74. Qe8+ {[%emt 0:00:38]} Kd5 {[%emt 0:03:22]} 75. Qd8+ {[%emt 0:01:24]} Ke5 {[%emt 0:01:22]} 1/2-1/2

[Event "Caplin Hastings Masters 2023-24"]
[Site "Hastings"]
[Date "2023.12.30"]
[Round "3.18"]
[White "Lux, Hugo de Melo"]
[Black "White, Stuart A"]
[Result "1-0"]
[ECO "B23"]
[WhiteElo "2311"]
[BlackElo "2014"]
[Annotator "ChessBase"]
[PlyCount "73"]
[EventDate "2023.12.18"]
[EventType "swiss"]
[EventCountry "ENG"]
[SourceTitle "playchess.com"]
[Source "ChessBase"]
[SourceQuality "1"]
[TimeControl "40/6000+30:3000+30"]

1. e4 {[%emt 0:04:00]} c5 {[%emt 0:00:05]} 2. Nc3 {[%emt 0:00:10]} Nc6 {[%emt 0:00:06]} 3. Bb5 {[%emt 0:00:07]} Nd4 {[%emt 0:00:36]} 4. Bc4 {[%emt 0:00:11]} e6 {[%emt 0:02:00]} 5. Nge2 {[%emt 0:00:17]} Nf6 {[%emt 0:03:29]} 6. O-O {[%emt 0:00:49]} a6 {[%emt 0:03:17]} 7. a4 {[%emt 0:02:58]} d5 {[%emt 0:05:23]} 8. exd5 {[%emt 0:00:05]} exd5 {[%emt 0:00:04]} 9. Ba2 {[%emt 0:00:05]} Bd6 {[%emt 0:17:05]} 10. d3 {[%emt 0:00:40]} O-O {[%emt 0:08:14]} 11. Nxd4 {[%emt 0:00:07]} cxd4 {[%emt 0:00:03]} 12. Ne2 {[%emt 0:00:09]} Bg4 {[%emt 0:09:50]} 13. h3 {[%emt 0:00:04]} Bh5 {[%emt 0:02:37]} 14. f3 {[%emt 0:05:56]} Re8 {[%emt 0:07:24]} 15. g4 {[%emt 0:29:32]} Bg6 {[%emt 0:00:44]} 16. Kg2 {[%emt 0:24:17]} Qd7 {[%emt 0:11:14]} 17. Nxd4 {[%emt 0:30:45]} Qxa4 {[%emt 0:03:06]} 18. c3 {[%emt 0:01:20]} Qd7 {[%emt 0:07:41]} 19. f4 {[%emt 0:00:30]} h6 {[%emt 0:01:49]} 20. f5 {[%emt 0:00:28]} Bh7 {[%emt 0:00:30]} 21. Qf3 {[%emt 0:00:17]} Bc5 {[%emt 0:01:33]} 22. Be3 {[%emt 0:03:03]} Rad8 {[%emt 0:01:27]} 23. Bf2 {[%emt 0:00:38]} Qd6 {[%emt 0:03:45]} 24. Rae1 {[%emt 0:01:52]} Bb6 {[%emt 0:00:03]} 25. Bg3 {[%emt 0:00:22]} Qd7 {[%emt 0:00:07]} 26. Be5 {[%emt 0:01:18]} Rxe5 {[%emt 0:01:43]} 27. Rxe5 {[%emt 0:00:01]} Bc7 {[%emt 0:00:08]} 28. Rfe1 {[%emt 0:00:36]} Bxe5 {[%emt 0:01:53]} 29. Rxe5 {[%emt 0:00:00]} Qc7 {[%emt 0:04:33]} 30. Re2 {[%emt 0:00:36]} Kf8 {[%emt 0:00:39]} 31. h4 {[%emt 0:02:10]} Qd6 {[%emt 0:01:46]} 32. g5 {[%emt 0:00:27]} hxg5 {[%emt 0:00:22]} 33. hxg5 {[%emt 0:00:00]} Ne8 {[%emt 0:00:18]} 34. Ne6+ {[%emt 0:02:24]} fxe6 {[%emt 0:00:26]} 35. fxe6+ {[%emt 0:00:01]} Kg8 {[%emt 0:00:08]} 36. e7 {[%emt 0:00:33]} Be4 {[%emt 0:07:44]} 37. Rxe4 {[%emt 0:00:39]} 1-0